Cogmind - Beta 14 @@@ ROGUE MODE // 2024.08.31 @ 20:26:40 Player: Helstads_dog Result: Destroyed by Y-54 Guardian with Gatling Laser Performance ------------- Evolutions (0) 0 Regions Visited (3) 600 Robots Destroyed (31) 155 Value Destroyed (656) 656 Prototype IDs (7) 140 Alien Tech Used (0) 0 Bonus (0) 0 TOTAL SCORE: 1551 Bonus ------- None Cogmind --------- Core Integrity 0/250 Matter 291/300 Energy 100/100 System Corruption 2% Temperature Warm (118) Movement Treading (160) Location -7/Recycling Parts ------- > --- POWER (1) -------- (None) > --- PROPULSION (2) --- Light Treads Light Treads > --- UTILITY (2) ------ Large Storage Unit Signal Interpreter > --- WEAPON (2) ------- Subdweller Laser Shotgun > --- INVENTORY (15) --- Ion Engine Subdweller Power Source Light Treads Light Treads Light Treads Heat Sink High-capacity Matter Pod (200) Particle Gun Gatling Laser Beam Cannon Beam Cannon Assault Rifle Mining Claw Peak State ------------ > --- POWER ------------ Ion Engine > --- PROPULSION ------- Improved Aluminum Leg Improved Aluminum Leg > --- UTILITY ---------- Heat Sink Medium Storage Unit > --- WEAPON ----------- Medium Laser Shotgun > --- INVENTORY -------- Ion Engine Light Treads Light Treads Aluminum Leg Aluminum Leg EM Pulse Gun Assault Rifle Shotgun Shotgun Mining Laser [Rating: 11] Favorites ----------- Power Ion Engine Engine Ion Engine Power Core Light Nuclear Core Propulsion Light Treads Treads Light Treads Leg Improved Aluminum Leg Utility Large Storage Unit Device Heat Sink Storage Large Storage Unit Processor Signal Interpreter Weapon Shotgun Energy Gun Medium Laser Energy Cannon Subdweller Beam Cannon Ballistic Gun Shotgun Special Weapon Mining Laser Slashing Weapon Mining Claw Build | -11 -10 -10 -7 ------- Run | Yrd Mat Sub Rec Slots Evolved . | . . . . Power . | . . . . Propulsion . | . . . . Utility . | . . . . Weapon . | . . . . Parts Attached 35 | 6 18 11 . Power 4 | 1 1 2 . Engine 3 | 1 1 1 . Core 1 | . . 1 . Reactor . | . . . . Propulsion 9 | 2 5 2 . Treads 5 | . 3 2 . Leg 4 | 2 2 . . Wheel . | . . . . Hover . | . . . . Flight . | . . . . Utility 8 | 1 7 . . Device 3 | . 3 . . Storage 3 | 1 2 . . Processor 2 | . 2 . . Hackware . | . . . . Protection . | . . . . Artifact . | . . . . Weapon 14 | 2 5 7 . Energy Gun 3 | 1 1 1 . Energy Cannon 3 | . 1 2 . Ballistic Gun 6 | 1 2 3 . Ballistic Cannon . | . . . . Launcher . | . . . . Special Weapon 1 | . 1 . . Impact Weapon . | . . . . Slashing Weapon 1 | . . 1 . Piercing Weapon . | . . . . Special Melee Weapon . | . . . . Unidentified Prototypes . | . . . . Parts Lost 6 | . . 5 1 Power 3 | . . 2 1 Propulsion 1 | . . 1 . Utility . | . . . . Weapon 2 | . . 2 . Highest Loss Streak 3 | . . 3 1 To Critical Strikes . | . . . . Average Slot Usage (%) 99 | . 99 99 100 Engine 12 | . 14 9 14 Core 1 | . . 3 . Treads 23 | . 18 28 28 Leg 4 | . 9 . . Device 6 | . 12 . . Storage 14 | . 14 14 14 Processor 7 | . 1 14 14 Energy Gun 9 | . 12 5 14 Energy Cannon 4 | . 1 8 . Ballistic Gun 13 | . 14 12 14 Peak Build Rating 11 | 6 11 11 10 Average Rating 9 | 4 9 9 10 On Entrance 6 | . 6 9 10 Naked Turns . | . . . . Heaviest Build 36 | 14 32 36 32 Greatest Support 40 | 20 40 40 40 Greatest Overweight (x) 1 | . 1 . . Average Overweight (x) . | . . . . Largest Inventory Capacity 15 | 8 15 15 15 Average Capacity 13 | 7 13 15 15 Most Carried 15 | 4 15 15 13 Average Carried 12 | 2 12 14 11 Final Capacity 15 | 8 15 15 15 Final Carried 15 | 4 15 11 13 Class Distribution -------------------- 100% | Mutant Dominant Class ---------------- Mutant | -10/Materials Mutant | -10/Subcaves Mutant | -7/Recycling Resources | -11 -10 -10 -7 ----------- Run | Yrd Mat Sub Rec Matter Collected 1092 | 189 654 229 20 Remotely . | . . . . Salvage Created 1021 | . 675 204 142 Parts 69 | . 49 13 7 Haulers Intercepted 2 | . 2 . . Recyclers Shooed 2 | . 1 . 1 Parts Field Recycled . | . . . . Retrieved Matter . | . . . . Parts Self-Destructed 14 | . . 14 . Prevented . | . . . . Kills | -11 -10 -10 -7 ------- Run | Yrd Mat Sub Rec Combat Hostiles Destroyed 21 | . 16 4 1 Guns 20 | . 16 3 1 Cannons 1 | . . 1 . Classes Destroyed 8 | . 5 2 1 Hauler 2 | . 2 . . Recycler 3 | . 2 . 1 Turret 2 | . . 2 . Watcher 3 | . 3 . . Swarmer 10 | . 9 1 . Grunt 9 | . 7 2 . Sentry 1 | . . . 1 Subdweller 1 | . . 1 . Best Kill Streak 4 | . 4 2 2 Combat Bots Only 4 | . 4 2 1 Max Kills in Single Turn 2 | . 2 1 1 Gunslinging . | . . . . Exploded . | . . . . Melee . | . . . . Uniques/NPCs Destroyed . | . . . . Combat | -11 -10 -10 -7 -------- Run | Yrd Mat Sub Rec Hostile Shots Fired 224 | . 65 111 48 Missed 71 | . 15 35 21 Damage Taken 1388 | . 506 661 221 Core 256 | . 99 108 49 Absorbed by Shields . | . . . . Core Remaining (%) 100 | 100 . . . Volleys Fired 110 | . 65 36 9 Largest 2 | . 2 2 2 Hottest 103 | . 100 103 83 Shots Fired 188 | . 115 57 16 Gun 177 | . 113 48 16 Cannon 9 | . . 9 . Launcher . | . . . . Special 2 | . 2 . . Kinetic 98 | . 57 34 7 Thermal 90 | . 58 23 9 Explosive . | . . . . Electromagnetic . | . . . . Robot Hit Streak 18 | . 13 13 18 Robot Miss Streak 6 | . 5 6 1 Penetration Max . | . . . . Secondary Targets 2 | . 2 . . Max Gunslinging Chain 1 | . 1 . . Shots Hit Robots 126 | . 74 40 12 Core Hits 58 | . 37 14 7 Critical Kills 1 | . 1 . . Critical Parts Destroyed . | . . . . Critical Strikes 3 | . 3 . . Burn 2 | . 2 . . Destroy 1 | . 1 . . Melee Attacks 1 | . . 1 . Impact . | . . . . Slashing 1 | . . 1 . Piercing . | . . . . Sneak Attacks . | . . . . Combat Hostiles . | . . . . Follow-up Attacks . | . . . . Damage Inflicted 2005 | . 1076 706 223 Guns 1807 | . 1076 508 223 Cannons 198 | . . 198 . Explosions . | . . . . Melee . | . . . . Ramming . | . . . . Kinetic 1083 | . 617 382 84 Thermal 922 | . 459 324 139 Explosive . | . . . . Electromagnetic . | . . . . Impact . | . . . . Slashing . | . . . . Piercing . | . . . . Highest Corruption 2 | . 2 2 2 Average Corruption 2 | . 2 2 2 Corruption Purged . | . . . . Corruption Blocked . | . . . . Effects 18 | . 1 14 3 Message Errors 4 | . 1 2 1 Matter Fused 4 | . . 3 1 Heat Flow Errors 3 | . . 3 . Energy Discharges 1 | . . 1 . Parts Rejected 1 | . . 1 . Data Loss (minor) 2 | . . 2 . Data Loss (major) 1 | . . 1 . Alerts 2 | . . 1 1 Overload Shots . | . . . . Overflow Damage . | . . . . Projectiles . | . . . . Explosions . | . . . . Melee . | . . . . Knockbacks . | . . . . Impact . | . . . . Kinetic . | . . . . Secondary . | . . . . Self-Inflicted Damage . | . . . . Shots . | . . . . Rammed . | . . . . Targets Rammed . | . . . . Kicked . | . . . . Crushed . | . . . . Highest Temperature 219 | . 4 219 106 Average Temperature 72 | . 4 113 48 Received Heat Transfer 663 | . 162 429 72 Effects 1 | . . 1 . Energy Bleed 1 | . . 1 . Siege Activations . | . . . . Robots Corrupted . | . . . . Combat Hostiles . | . . . . Parts Fried . | . . . . Impact Corruptions . | . . . . Robots Melted . | . . . . Combat Hostiles . | . . . . Parts Melted 7 | . 7 . . Heat Transferred 2101 | . 1517 409 175 Parts Sabotaged . | . . . . Parts Stolen . | . . . . Parts Stripped . | . . . . Power Chain Reactions . | . . . . Alert | -11 -10 -10 -7 ------- Run | Yrd Mat Sub Rec Peak Influence 231 | . 231 . 102 Initial 76 | . . . 76 Average 92 | . 98 . 84 Maximum Alert Level 1 | . 1 . . Low Security (%) 94 | 100 93 . 100 Level 1 5 | . 6 . . Level 2 . | . . . . Level 3 . | . . . . Level 4 . | . . . . Level 5 . | . . . . High Security . | . . . . Max Security . | . . . . Squads Dispatched 1 | . 1 . . Investigation 1 | . 1 . . Extermination . | . . . . Reinforcement . | . . . . Assault . | . . . . Garrison . | . . . . Intercept . | . . . . Searches Triggered . | . . . . Construction Impeded . | . . . . Haulers Reinforced . | . . . . Active Scanning Responses . | . . . . Cargo Convoy Interrupts . | . . . . Stealth | -11 -10 -10 -7 --------- Run | Yrd Mat Sub Rec Distress Signals 1 | . 1 . . Communications Jammed . | . . . . Distress Signals . | . . . . Times Spotted 32 | . 21 9 2 Peak Tracking Total 5 | . 5 3 1 Tactical Retreats 4 | . . 4 . Traps | -11 -10 -10 -7 ------- Run | Yrd Mat Sub Rec Traps Triggered 2 | . 2 . . Indirectly . | . . . . Trap Hack Attempts . | . . . . Triggered . | . . . . Disarmed . | . . . . Reprogrammed . | . . . . Reused . | . . . . Traps Extracted . | . . . . Installed . | . . . . Triggered . | . . . . Machines | -11 -10 -10 -7 ---------- Run | Yrd Mat Sub Rec Machines Disabled 2 | . . 2 . Max in Single Turn 1 | . . 1 . Machines Repaired . | . . . . Machines Dismantled . | . . . . Machines Sabotaged . | . . . . Overloaded Fab Kills . | . . . . Hacking | -11 -10 -10 -7 --------- Run | Yrd Mat Sub Rec Machines Accessed 12 | . 9 1 2 Terminals 9 | . 7 . 2 Fabricators . | . . . . Repair Stations . | . . . . Recycling Units 2 | . 2 . . Scanalyzers . | . . . . Garrison Access . | . . . . Total Hacks 43 | . 34 4 5 Successful 20 | . 14 4 2 Failed 23 | . 20 . 3 Catastrophic 5 | . 4 . 1 Database Lockouts . | . . . . Manual 8 | . 8 . . Terminals 36 | . 31 . 5 Fabricators . | . . . . Repair Stations . | . . . . Recycling Units 3 | . 3 . . Scanalyzers . | . . . . Garrison Access . | . . . . Terminal Hacks 18 | . 12 4 2 Record 5 | . . 4 1 Prototype ID Bank 5 | . 5 . . Branch Access Points 1 | . 1 . . Alert Level 2 | . 1 . 1 Locate Traps 4 | . 4 . . Zone Layout 1 | . 1 . . Fabricator Hacks . | . . . . Repair Station Hacks . | . . . . Recycling Unit Hacks 2 | . 2 . . Report Inventory 1 | . 1 . . Retrieve Components 1 | . 1 . . Scanalyzer . | . . . . Garrison Access Hacks . | . . . . Unauthorized Hacks . | . . . . Terminals . | . . . . Fabricators . | . . . . Repair Stations . | . . . . Recycling Units . | . . . . Scanalyzers . | . . . . Garrison Access . | . . . . Data Cores Recovered . | . . . . Used . | . . . . Hacking Detections 10 | . 8 . 2 Full Trace Events 1 | . . . 1 Feedback Events . | . . . . Feedback Blocked . | . . . . Robot Schematics Acquired . | . . . . Robots Built . | . . . . Authchips . | . . . . Time . | . . . . Total Robot Build Rating . | . . . . Part Schematics Acquired . | . . . . Parts Built . | . . . . Authchips . | . . . . Time . | . . . . Total Part Build Rating . | . . . . Parts Repaired . | . . . . Time . | . . . . Parts Recycled . | . . . . Recycled Matter . | . . . . Retrieved Matter . | . . . . Retrieved Components 10 | . 10 . . Parts Scanalyzed . | . . . . Part Schematics Acquired . | . . . . Parts Damaged . | . . . . Bothacking | -11 -10 -10 -7 ------------ Run | Yrd Mat Sub Rec Used RIF Installer . | . . . . Robots Hacked . | . . . . Non-combat . | . . . . Combat . | . . . . Robot Hacks Applied . | . . . . Relay Couplers Released . | . . . . Fabnet Peak Effective % . | . . . . Robots Rewired . | . . . . Allies Hacked . | . . . . Hacks Repelled . | . . . . Allies | -11 -10 -10 -7 -------- Run | Yrd Mat Sub Rec Total Allies . | . . . . Largest Group . | . . . . Highest-Rated Group . | . . . . Highest-Rated Ally . | . . . . Total Orders . | . . . . Ally Attacks . | . . . . Total Damage . | . . . . Kills . | . . . . Allies Corrupted . | . . . . Allies Melted . | . . . . Intel | -11 -10 -10 -7 ------- Run | Yrd Mat Sub Rec Robot Analysis Total . | . . . . Derelict Logs Recovered 1 | . . 1 . Drone Launches . | . . . . Drone Recoveries . | . . . . Exploration | -11 -10 -10 -7 ------------- Run | Yrd Mat Sub Rec Turns Passed 2571 | 59 1253 1022 237 Spaces Moved 1394 | 39 680 557 118 Core 4 | 4 . . . Treads 1095 | . 420 557 118 Legs 295 | 35 260 . . Wheels . | . . . . Hover . | . . . . Flight . | . . . . Fastest Speed 50 | 50 120 160 160 Average Speed 151 | 112 145 160 160 Slowest Speed 190 | 120 190 160 160 Overloaded Moves . | . . . . Propulsion Burnouts . | . . . . Robots Hopped . | . . . . Cave-ins Triggered . | . . . . Exploration Rate (%) 41 | 4 99 35 26 Regions Visited 3 Branch Regions 2 Pre-discovered Areas 3 | . . 3 . Known Exits Taken 2 | . 1 1 . Unknown Exits Taken 1 | 1 . . . Scrap Searched . | . . . . Spaces Dug 2 | . 2 . . Terrain Destroyed 3 | . 2 1 . Melee . | . . . . Projectile 3 | . 2 1 . AOE . | . . . . Terrain Rammed . | . . . . Walls Destroyed . | . . . . Machines Disabled . | . . . . Actions | -11 -10 -10 -7 --------- Run | Yrd Mat Sub Rec Total 1660 | 51 833 626 150 Wait 67 | 3 35 15 14 Move 1391 | 38 679 556 118 Hop . | . . . . Pick Up 28 | 4 19 3 2 Fast Attach 12 | 6 3 3 . Attach 5 | . 1 4 . Detach 2 | . 2 . . Swap 18 | . 14 4 . Drop 19 | . 15 4 . Fire 110 | . 65 36 9 Melee 1 | . . 1 . Ram . | . . . . Kick . | . . . . Crush . | . . . . Escape Stasis . | . . . . Rewire 7 | . . . 7 Trap . | . . . . Miscellaneous . | . . . . Route ------- -11/Scrapyard -10/Materials (discovered 5 exits: *Mat x3 / *Min / *Sub) -10/Subcaves (discovered 2 exits: *Mat / *Rec) -7/Recycling History --------- Turn | Location | Event 5 | -11/Scrapyard | Discovered new exit (range 14) 60 | -11/Scrapyard | Entered Materials 143 | -10/Materials | Identified exit to Mines 312 | -10/Materials | Build established: Mutant 401 | -10/Materials | Discovered new exit (range 10) 645 | -10/Materials | Discovered new exit (range 16) 670 | -10/Materials | Identified exit to Materials 1072 | -10/Materials | Discovered exit to Materials (range 9) 1304 | -10/Materials | Discovered new exit (range 5) 1313 | -10/Materials | Identified exit to Subcaves 1313 | -10/Materials | Entered Subcaves 1397 | -10/Subcaves | Discovered new exit (range 8) 1409 | -10/Subcaves | Identified exit to Materials 1414 | -10/Subcaves | Visited Clippyterm 1418 | -10/Subcaves | Learned location of Section 7 (-2) 1418 | -10/Subcaves | Learned location of Deep Caves (-6) 1464 | -10/Subcaves | Shifting Twisted Machinery released Flamer 1467 | -10/Subcaves | Shifting Twisted Machinery released Sub. Beam Cannon 1491 | -10/Subcaves | Learned location of Zion (-6) 1491 | -10/Subcaves | Met a Zionite searching for "candidates" 1958 | -10/Subcaves | Core integrity fell below 50% 1992 | -10/Subcaves | Lost 3 parts (1p1n1w) 2046 | -10/Subcaves | Learned Materials security intel 2260 | -10/Subcaves | Discovered new exit (range 9) 2283 | -10/Subcaves | Core integrity fell below 20% 2323 | -10/Subcaves | Identified exit to Recycling 2335 | -10/Subcaves | Entered Recycling 2336 | -7/Recycling | Met a Zionite searching for Scraptown 2572 | -7/Recycling | Destroyed by Y-54 Guardian with Gatling Laser Last Messages --------------- 02506_ Acquired Gatling Laser. 02507_ R-06 Scavenger collects Imp. Heat Sink. 02509_ R-06 Scavenger destroyed. 02510_ R-06 Scavenger collects Imp. Heat Sink. 02512_ R-06 Scavenger collects Com. Wheel. 02515_ R-06 Scavenger collects Lgt. Ion Engine. 02516_ Acquired 8 matter. 02535_ >9B1CW39OPD1TXFGFG&/A38=9VCHXVLID 02540_ Connecting with Terminal... >>Query(Waste) Subzones between [Complex 0b10] mid-levels where larger machinery and obsolete robot models are broken down by completely autonomous compactors. The process doubles as a convenient way to deal with intruders swallowed by a [Chute Trap]. 02540_ Connecting with Terminal... >>Alert(Check) Current Alert Level: Low Security 02554_ System corrupted: Matter fused (-6). 02562_ Y-54 Guardian springs to life. 02572_ Ion Engine destroyed. Map ----- +----------------------------------------------------+ | ?????# # ! #????????????????????????? | | ?????# + #????????????????????????? | | ?????# #! ! #????????????????????????? | | ?????# # ] #????????????????????????? | | ?????# #? !% +????????????????????????? | | ?????# #?#########????????????????????????? | | ?????# #??????????????????????????????????? | | ?????# #?###??????????????????????????????? | | ?????# ### ###########????????????????????? | | ?????# # #????????????????????? | | ?????# # #????????????????????? | | ?????# / #????????????????????? | | ?????# # #????????????????????? | | ?????# ###############????? ??????????????? | | ?????# #??##??!!#??????##? ????????????? | | ????## ### ## ! ####### ## r ????????????? | | ????# ???????????? | | ????# Y ????????????? | | ????# ##????????????? | | ????# ""????????????? | | ????# % r Y"????????????? | | ??#####+############ ""????????????? | | ??# % #???# #?????????????? | | ??# #???# #?????????????? | | ??# ##### #?????????????? | | ??# + @ #?????????????? | | ??# ######## #?????????????? | | ??# """ #??????????? #?????????????? | | ??# """"" #????????????????????????????? | | ??# """"" #????????????????????????????? | | ??# """"" #????????????????????????????? | | ??# """ #????????????????????????????? | | ??# #????????????????????????????? | | ??# #????????????????????????????? | | ??####"T"#######????????????????????????????? | | ?????#####??????????????????????????????????? | | ????????????????????????????????????????????? | | ????????????????????????????????????????????? | | ????????????????????????????????????????????? | | | | | | | | | | | | | | | | | | | | | | | +----------------------------------------------------+ Best States ------------- Heat Dissipation 35 Energy Generation 14 Energy Capacity 250 Matter Stores 300 Matter Capacity 300 Sight Range 16 Terrain Scan Density 10 Evasion (%) 55 Recoil Reduction 2 Item Schematics ----------------- None Robot Schematics ------------------ None Fabricated ------------ Nothing Alien Tech Used ----------------- None Achievements -------------- None Challenges ------------ None Game ------ Seed ThrusterCloakingSteel Manual? 0 Play Time 00:40:22 Cumulative 14.3 hours Start 2024.08.31 @ 19:39:07 End 2024.08.31 @ 20:26:40 Sessions 1 Manual Loads 0 Difficulty Rogue Special Mode None Game No. 11 Rogue 11 Adventurer 0 Explorer 0 Win Type - Total 0 Types 0/0/0/0/0/0/0/0/0 Lore% 10 Gallery% 12 Achievement% 30 Wizard Run 0 Options --------- Layout 0 ASCII 0 Keyboard 0 Movement Mouse Keybinds 0 Fullscreen 1 Font 16/SmallcapsGlow Map View 37x27 Zoom Use 87% Tactical HUD 1 Map Filters NONE Filters NONE Steam 1 RUN: 652eab40-6195-49d5-83f3-3e3dc9ff6234